Cogmind - Beta 13 @@@ ROGUE MODE // 2024.03.18 @ 20:47:10 Player: CrossedViper Result: Destroyed by Executioner with Helical Railgun Performance ------------- Evolutions (6) 3000 Regions Visited (14) 2800 Robots Destroyed (187) 935 Value Destroyed (7545) 7545 Prototype IDs (26) 520 Alien Tech Used (0) 0 Bonus (3130) 3130 TOTAL SCORE: 17930 Bonus ------- High Alert Combat Kills 1407 Follower Combat Kills 1981 Entered DSFs 500 Network Hubs Disabled 400 Built Enhanced Grunts 300 Met R17 at Cetus 500 Friendly Fire -1958 Cogmind --------- Core Integrity 0/1150 Matter 258/300 Energy 85/100 System Corruption 15% Temperature Cool (0) Movement Core (50) Location -4/Factory Parts ------- > --- POWER (2) -------- (None) > --- PROPULSION (4) --- (None) > --- UTILITY (9) ------ Scrap Engine Experimental Targeting Computer > --- WEAPON (4) ------- (None) > --- INVENTORY (5) ---- High-capacity Storage Unit Advanced Terrain Scanner Experimental EM Disruption Field Powered Cannon Peak State ------------ > --- POWER ------------ Angular Momentum Engine Heavy Antimatter Reactor > --- PROPULSION ------- Centrium Heavy Treads Centrium Heavy Treads > --- UTILITY ---------- Advanced Power Amplifier Advanced Power Amplifier Experimental Heat Sink Advanced Cooling System High-capacity Storage Unit Experimental Targeting Computer Centrium Medium Armor Plating Centrium Medium Armor Plating Medium Regenerative Plating > --- WEAPON ----------- Advanced Variable Charge Gun Phase Cannon Phase Cannon Matter Neutralizer > --- INVENTORY -------- Angular Momentum Engine Centrium Heavy Treads Scrap Engine Advanced Power Amplifier Advanced Cooling System Improved Energy Well Advanced Energy Well Advanced Terrain Scanner Improved Weapon Shielding Centrium Medium Armor Plating Centrium Medium Armor Plating Experimental EM Disruption Field Advanced Variable Charge Gun EMDS Powered Cannon Matter Neutralizer [Rating: 148] Favorites ----------- Power Light Deuterium Engine Engine Light Deuterium Engine Power Core Light Nuclear Core Reactor Quantum Reactor Propulsion Light Treads Treads Light Treads Leg Carbon-fiber Leg Wheel Armored Wheel Utility Improved Heat Sink Device Improved Heat Sink Storage High-capacity Storage Unit Processor Enhanced Optical Array Protection Makeshift Light Armor Plating Weapon Flak Gun Energy Gun Advanced Variable Charge Gun Energy Cannon Phase Cannon Ballistic Gun Flak Gun Ballistic Cannon Battle Cannon Launcher Mini Grenade Launcher Build | -11 -10 -10 -10 -8 -6 -6 -6 -6 -6 -6 -6 -5 -5 -4 ------- Run | Yrd Mat Min Sub Rec Fac Was Fac Ext Cet Arc Hub Fac DSF Fac Slots Evolved 12 | . . . . . 8 . . . . . . 2 . 2 Power 1 | . . . . . 1 . . . . . . . . . Propulsion 2 | . . . . . 1 . . . . . . 1 . . Utility 7 | . . . . . 4 . . . . . . 1 . 2 Weapon 2 | . . . . . 2 . . . . . . . . . Parts Attached 175 | 6 . 2 19 7 27 2 4 47 11 4 19 2 6 19 Power 28 | 1 . . 3 1 2 . . 10 3 1 2 . 1 4 Engine 12 | 1 . . 3 1 . . . 4 . . . . 1 2 Core 8 | . . . . . 2 . . 6 . . . . . . Reactor 8 | . . . . . . . . . 3 1 2 . . 2 Propulsion 33 | 2 . . 2 1 7 1 2 10 2 . 3 1 . 2 Treads 18 | 2 . . 1 1 . . . 7 2 . 3 1 . 1 Leg 10 | . . . . . 7 1 2 . . . . . . . Wheel 5 | . . . 1 . . . . 3 . . . . . 1 Hover . | . . . . . . . . . . . . . . . Flight . | . . . . . . . . . . . . . . . Utility 50 | 1 . . 7 1 4 . 1 13 2 1 8 1 2 9 Device 24 | . . . 4 . 2 . . 5 . 1 3 1 2 6 Storage 5 | 1 . . . 1 . . . 2 . . 1 . . . Processor 5 | . . . . . 2 . . 2 . . 1 . . . Hackware . | . . . . . . . . . . . . . . . Protection 16 | . . . 3 . . . 1 4 2 . 3 . . 3 Artifact . | . . . . . . . . . . . . . . . Weapon 64 | 2 . 2 7 4 14 1 1 14 4 2 6 . 3 4 Energy Gun 20 | 2 . 1 1 . 7 1 . 2 1 1 3 . . 1 Energy Cannon 16 | . . . 1 2 1 . 1 3 . 1 1 . 3 3 Ballistic Gun 17 | . . 1 2 1 1 . . 7 3 . 2 . . . Ballistic Cannon 4 | . . . 1 1 . . . 2 . . . . . . Launcher 7 | . . . 2 . 5 . . . . . . . . . Special Weapon . | . . . . . . . . . . . . . . . Impact Weapon . | . . . . . . . . . . . . . . . Slashing Weapon . | . . . . . . . . . . . . . . . Piercing Weapon . | . . . . . . . . . . . . . . . Special Melee Weapon . | . . . . . . . . . . . . . . . Unidentified Prototypes 16 | . . . . . 1 1 . 1 4 1 7 . . 1 Corrupted Parts 16 | . . . . . . . . 3 7 1 3 1 . 1 System Corruption 71 | . . . . . . . . 11 35 6 11 5 . 3 Parts Lost 78 | . . 2 6 . 16 . . 25 4 1 1 . 2 21 Power 15 | . . . 1 . 3 . . 5 . . . . 1 5 Propulsion 19 | . . . 3 . 4 . . 9 . . . . . 3 Utility 21 | . . . 2 . 3 . . 3 2 1 1 . 1 8 Weapon 23 | . . 2 . . 6 . . 8 2 . . . . 5 Highest Loss Streak 18 | . . 2 2 . 9 . . 7 3 1 1 . 1 18 To Critical Strikes 1 | . . . . . . . . . 1 . . . . . Average Slot Usage (%) 88 | . 85 85 95 92 70 33 38 86 87 89 91 87 87 84 Engine 8 | . 14 14 12 14 3 . . 3 5 . . . 2 5 Core 1 | . . . . . 3 . . 5 . . . . . . Reactor 1 | . . . . . . . . . 4 10 13 11 8 3 Treads 17 | . 28 28 27 21 7 . . 13 4 13 13 11 11 7 Wheel 1 | . . . . . . . . 3 8 . . . . 1 Device 13 | . . . 17 9 4 6 6 12 9 10 10 10 16 21 Storage 3 | . 14 14 . 4 5 . . 4 6 6 6 5 5 4 Processor 4 | . . . . . 8 6 6 8 13 8 7 11 5 5 Protection 9 | . . . 8 14 5 . 3 10 8 13 12 11 11 12 Energy Gun 4 | . 28 25 . . 12 . . 4 2 6 6 5 5 5 Energy Cannon 5 | . . . 5 14 3 . 1 . 3 . . . 10 13 Ballistic Gun 9 | . . 2 13 1 1 . . 14 11 20 17 17 6 . Ballistic Cannon 4 | . . . 7 12 2 . . 3 6 . . . . . Naked Turns . | . . . . . . . . . . . . . . . Heaviest Build 132 | 14 14 14 25 27 46 1 11 100 99 120 120 112 118 132 Greatest Support 160 | 40 40 40 40 40 47 3 45 76 100 100 100 160 160 160 Greatest Overweight (x) 6 | . . . 2 1 2 . . 6 2 1 1 . . 4 Average Overweight (x) . | . . . . . . . . 1 . . 1 . . . Largest Inventory Capacity 20 | 8 8 8 8 8 8 5 5 20 20 20 20 20 20 20 Average Capacity 11 | 7 8 8 5 5 7 5 5 17 20 20 20 20 20 19 Most Carried 20 | 5 6 6 6 7 8 5 5 19 20 20 20 20 20 20 Average Carried 9 | 2 5 5 4 5 7 5 5 9 19 19 19 18 19 18 Final Capacity 20 | 8 8 8 5 8 5 5 5 20 20 20 20 20 20 5 Final Carried 20 | 5 6 6 5 7 5 5 5 18 20 20 20 20 19 5 Scrap Engine Consumption 1 | . . . . . . . . . . . . . . 1 Class Distribution -------------------- 36% | Mutant 29% | Scavenger-Tank 17% | Scavenger-Mutant 14% | Scavenger-Gunner Dominant Class ---------------- Mutant | -10/Materials Mutant | -10/Mines Mutant | -10/Subcaves Mutant | -8/Recycling Scavenger-Gunner | -6/Factory Scavenger-Mutant | -6/Waste Scavenger-Mutant | -6/Factory Scavenger-Tank | -6/Extension Scavenger-Gunner | -6/Cetus Scavenger-Tank | -6/Archives Scavenger-Tank | -6/Hub_04(d) Scavenger-Tank | -5/Factory Scavenger-Tank | -5/DSF Scavenger-Tank | -4/Factory Resources | -11 -10 -10 -10 -8 -6 -6 -6 -6 -6 -6 -6 -5 -5 -4 ----------- Run | Yrd Mat Min Sub Rec Fac Was Fac Ext Cet Arc Hub Fac DSF Fac Matter Collected 4662 | 230 . 26 569 204 309 . . 1968 417 70 461 . 317 91 Remotely . | . . . . . . . . . . . . . . . Salvage Created 9318 | 101 . 58 687 886 839 . . 2190 555 . 886 . 942 2174 Parts 382 | 8 . 3 46 30 27 . . 67 33 . 47 . 36 85 Haulers Intercepted 5 | . . . . . . . . 4 . . . . . 1 Recyclers Shooed 10 | . . . . 3 3 . . 1 . . . . . 3 Parts Field Recycled . | . . . . . . . . . . . . . . . Retrieved Matter . | . . . . . . . . . . . . . . . Parts Self-Destructed 17 | . . . 17 . . . . . . . . . . . Prevented . | . . . . . . . . . . . . . . . Kills | -11 -10 -10 -10 -8 -6 -6 -6 -6 -6 -6 -6 -5 -5 -4 ------- Run | Yrd Mat Min Sub Rec Fac Was Fac Ext Cet Arc Hub Fac DSF Fac Combat Hostiles Destroyed 129 | . . 4 21 3 19 . . 25 8 . 7 . 11 31 Guns 54 | . . 4 4 . 4 . . 19 4 . 6 . 6 7 Cannons 45 | . . . 6 3 2 . . 5 2 . . . 5 22 AOE 23 | . . . 11 . 10 . . 1 . . 1 . . . Classes Destroyed 21 | 2 . 2 5 1 5 . . 3 . . 2 . 1 . Worker 6 | . . . . . 1 . . 1 . . 2 . . 2 Builder 12 | . . . . . . . . 4 . . 3 . . 5 Tunneler 2 | 2 . . . . . . . . . . . . . . Hauler 5 | . . . . . . . . 4 . . . . . 1 Recycler 20 | 1 . . . 11 1 . . 4 . . 1 . . 2 Turret 2 | . . . 2 . . . . . . . . . . . Watcher 6 | . . . . . 1 . . 1 1 . 2 . . 1 Swarmer 25 | . . . 4 . 4 . . 6 . . . . . 11 Grunt 29 | . . . . . 6 . . 7 3 . 2 . 5 6 Brawler 3 | . . . . . 1 . . 1 . . . . . 1 Duelist 4 | . . . . . 1 . . . . . . . 1 2 Protector 1 | . . . . . . . . . . . 1 . . . Sentry 11 | . . . . 3 2 . . 4 . . 1 . . 1 Demolisher 2 | . . 2 . . . . . . . . . . . . Specialist 2 | . . . . . . . . . . . . . 2 . Hunter 12 | . . . . . 4 . . 3 . . . . 1 4 Programmer 8 | . . . . . 1 . . . 1 . . . 2 4 Heavy 2 | . . . . . . . . . . . 1 . . 1 Behemoth 3 | . . . . . . . . 2 . . . . . 1 Cetus Guard 4 | . . . . . . . . . 4 . . . . . Enhanced Grunt 1 | . . . . . . . . . . . 1 . . . Lightning 2 | . . . . . . . . . . . 2 . . . Subdweller 17 | . . . 17 . . . . . . . . . . . Assembled 2 | . . 2 . . . . . . . . . . . . Thug 4 | . . . 1 . . . . 3 . . . . . . Guerrilla 4 | . . . 1 . . . . 3 . . . . . . Best Kill Streak 10 | 3 . 3 9 5 6 . . 5 4 . 7 . 4 10 Combat Bots Only 9 | . . 3 9 2 5 . . 4 4 . 3 . 4 9 Max Kills in Single Turn 8 | 2 . 2 3 2 4 . . 2 1 . 8 . 1 2 Gunslinging 1 | . . 1 . . . . . . . . . . . . Exploded 4 | . . . 3 . 4 . . 1 . . 1 . . . Melee . | . . . . . . . . . . . . . . . Uniques/NPCs Destroyed . | . . . . . . . . . . . . . . . Combat | -11 -10 -10 -10 -8 -6 -6 -6 -6 -6 -6 -6 -5 -5 -4 -------- Run | Yrd Mat Min Sub Rec Fac Was Fac Ext Cet Arc Hub Fac DSF Fac Hostile Shots Fired 1306 | . . 19 72 6 144 . . 388 39 5 10 . 88 535 Missed 459 | . . 2 21 2 38 . . 149 17 . 1 . 33 196 Damage Taken 15653 | 22 21 385 925 58 1944 . . 3409 623 117 510 . 1073 6566 Core 2062 | . . 62 139 12 214 . . 395 . . . . 58 1182 Absorbed by Shields 84 | . . . . . . . . 52 32 . . . . . Reduced by Siege Mode 208 | . . . . . . . . . . . . . 30 178 Redirected to Shielding 74 | . . . . . . . . 74 . . . . . . Regen/Repaired (Parts) 551 | . . . . . . . . . 71 . 94 . 128 258 Core Remaining (%) 59 | 100 . . . 14 . . . . . . 28 . 94 . Volleys Fired 477 | 6 . 13 83 39 43 . . 103 45 3 24 . 40 78 Largest 4 | 2 . 2 2 2 4 . . 4 4 4 4 . 4 4 Hottest 515 | 80 . 80 110 119 335 . . 258 218 185 240 . 345 515 Shots Fired 1183 | 10 . 26 120 64 101 . . 311 75 10 67 . 125 274 Gun 680 | 10 . 26 56 19 65 . . 259 20 10 67 . 80 68 Cannon 482 | . . . 55 45 24 . . 52 55 . . . 45 206 Launcher 21 | . . . 9 . 12 . . . . . . . . . Special . | . . . . . . . . . . . . . . . Kinetic 551 | . . 7 87 39 14 . . 246 39 8 55 . 56 . Thermal 543 | . . 7 24 25 75 . . 57 1 2 12 . 69 271 Explosive 21 | . . . 9 . 12 . . . . . . . . . Electromagnetic 68 | 10 . 12 . . . . . 8 35 . . . . 3 Robot Hit Streak 35 | 2 . 3 32 9 11 . . 10 7 5 10 . 29 35 Robot Miss Streak 16 | 1 . 4 3 4 4 . . 16 6 1 3 . 2 6 Penetration Max 1 | . . . . . . . . 1 . . 1 . 1 1 Secondary Targets 7 | . . 1 . . . . . 4 . . 1 . 1 . Max Gunslinging Chain 1 | . . 1 . . . . . 1 . . 1 . 1 . Shots Hit Robots 785 | 4 . 10 73 36 67 . . 236 36 9 43 . 79 192 Core Hits 515 | 4 . 7 47 14 52 . . 232 20 3 29 . 28 79 Critical Kills 15 | . . . . . 1 . . 5 2 . 3 . 2 2 Critical Parts Destroyed 24 | . . . . 1 . . . 9 5 . 5 . 4 . Critical Strikes 51 | . . 1 1 1 5 . . 17 9 . 8 . 6 3 Burn 4 | . . . . . 4 . . . . . . . . . Meltdown 2 | . . . . . . . . . . . . . . 2 Destroy 41 | . . . 1 1 1 . . 16 8 . 8 . 6 . Corrupt 4 | . . 1 . . . . . 1 1 . . . . 1 Melee Attacks . | . . . . . . . . . . . . . . . Impact . | . . . . . . . . . . . . . . . Slashing . | . . . . . . . . . . . . . . . Piercing . | . . . . . . . . . . . . . . . Sneak Attacks . | . . . . . . . . . . . . . . . Combat Hostiles . | . . . . . . . . . . . . . . . Follow-up Attacks . | . . . . . . . . . . . . . . . Damage Inflicted 25326 | 126 . 119 3165 840 2940 . . 5145 1180 256 2246 . 2541 6768 Guns 11509 | 56 . 119 756 185 919 . . 3974 343 256 1395 . 1787 1719 Cannons 9008 | . . . 678 650 337 . . 822 719 . . . 754 5048 Explosions 4787 | 70 . . 1731 . 1684 . . 333 118 . 851 . . . Melee . | . . . . . . . . . . . . . . . Ramming 22 | . . . . 5 . . . 16 . . . . . 1 Kinetic 8110 | . . 13 1034 484 216 . . 3401 494 207 1136 . 1125 . Thermal 11803 | 70 . 62 400 351 1040 . . 1490 139 49 259 . 1416 6527 Explosive 3415 | . . . 1731 . 1684 . . . . . . . . . Electromagnetic 1976 | 56 . 44 . . . . . 238 547 . 851 . . 240 Impact . | . . . . . . . . . . . . . . . Slashing . | . . . . . . . . . . . . . . . Piercing . | . . . . . . . . . . . . . . . Highest Corruption 77 | . . . . . 8 8 8 20 55 61 77 5 9 15 Average Corruption 24 | . . . . . 4 8 8 18 35 58 71 5 8 2 Corruption Purged . | . . . . . . . . . . . . . . . Corruption Blocked . | . . . . . . . . . . . . . . . Effects 284 | . . . . . 12 4 1 128 40 11 58 5 19 6 Message Errors 66 | . . . . . 1 . . 28 9 3 18 2 5 . Matter Fused 50 | . . . . . 1 2 . 25 11 1 6 1 1 2 Heat Flow Errors 27 | . . . . . 2 . . 13 4 1 5 . 2 . Energy Discharges 28 | . . . . . 3 . . 16 3 . 3 . 1 2 Parts Rejected 2 | . . . . . . 1 . 1 . . . . . . Parts Fused 3 | . . . . . . . . 1 . . 1 . 1 . Data Loss (minor) 29 | . . . . . 2 . 1 14 2 . 8 1 1 . Data Loss (major) 14 | . . . . . 2 1 . 8 1 . . . 2 . Misfires 14 | . . . . . . . . 7 2 1 2 . 2 . Alerts 5 | . . . . . 1 . . . 2 . 1 1 . . Misdirections 10 | . . . . . . . . 1 4 3 1 . . 1 Weapon Failures 36 | . . . . . . . . 14 2 2 13 . 4 1 Overload Shots 12 | . . . . . . . . . . . 2 . 7 3 Effects 2 | . . . . . . . . . . . . . 1 1 Heat Surge 2 | . . . . . . . . . . . . . 1 1 Overflow Damage 351 | . . . 3 4 37 . . 42 10 . 33 . 10 212 Projectiles 230 | . . . . 4 . . . 3 1 . . . 10 212 Explosions 121 | . . . 3 . 37 . . 39 9 . 33 . . . Melee . | . . . . . . . . . . . . . . . Knockbacks 17 | . . . 3 3 3 . . 5 3 . . . . . Impact . | . . . . . . . . . . . . . . . Kinetic 16 | . . . 3 3 3 . . 4 3 . . . . . Secondary 1 | . . . . . . . . 1 . . . . . . Self-Inflicted Damage 532 | 22 . . 128 . 161 . . 46 . . 175 . . . Shots 12 | 1 . . 5 . 3 . . 1 . . 2 . . . Rammed 4 | . . . . 1 . . . 2 . . . . . 1 Targets Rammed 4 | . . . . 1 . . . 2 . . . . . 1 Kicked . | . . . . . . . . . . . . . . . Crushed . | . . . . . . . . . . . . . . . Highest Temperature 436 | 48 . 134 54 234 436 . . 389 261 213 308 . 273 343 Average Temperature 88 | 23 . 52 18 81 139 . . 73 69 98 91 . 94 91 Received Heat Transfer 1967 | . . 80 144 18 300 . . 525 26 9 9 . 219 637 Effects 8 | . . . . 1 2 . . 1 . . . . . 4 Shutdowns 1 | . . . . . . . . . . . . . . 1 Energy Bleed 1 | . . . . 1 . . . . . . . . . . Interference 4 | . . . . . 1 . . . . . . . . 3 Short Circuit 1 | . . . . . . . . 1 . . . . . . Damage (minor) 1 | . . . . . 1 . . . . . . . . . Siege Activations 6 | . . . . . . . . . . . . . 1 5 Total Turns 120 | . . . . . . . . . . . . . 21 99 Longest Duration 30 | . . . . . . . . . . . . . 21 30 Robots Corrupted 3 | . . . . . . . . 1 2 . . . . . Combat Hostiles 2 | . . . . . . . . . 2 . . . . . Parts Fried 15 | . . . . . . . . 3 2 . 10 . . . Impact Corruptions . | . . . . . . . . . . . . . . . Robots Melted 5 | . . . . . 3 . . . . . . . . 2 Combat Hostiles 5 | . . . . . 3 . . . . . . . . 2 Parts Melted 40 | . . . 1 . 13 . . 7 1 . . . 1 17 Heat Transferred 16617 | 100 . 185 592 518 2729 . . 2825 137 74 277 . 1630 7550 Parts Sabotaged . | . . . . . . . . . . . . . . . Parts Stolen . | . . . . . . . . . . . . . . . Parts Stripped . | . . . . . . . . . . . . . . . Power Chain Reactions 2 | 1 . . . . . . . . 1 . . . . . Alert | -11 -10 -10 -10 -8 -6 -6 -6 -6 -6 -6 -6 -5 -5 -4 ------- Run | Yrd Mat Min Sub Rec Fac Was Fac Ext Cet Arc Hub Fac DSF Fac Peak Influence 1382 | 15 39 50 . 292 532 181 126 356 796 479 1382 676 749 994 Initial 676 | . 9 15 . 192 266 136 126 61 33 318 167 676 473 392 Average 352 | 3 19 18 . 169 334 172 126 178 420 443 999 676 622 598 Maximum Alert Level 4 | . . . . 1 2 . . 1 3 2 4 2 3 3 Low Security (%) 38 | 100 100 100 . 71 11 100 100 53 15 . 3 . . . Level 1 31 | . . . . 28 65 . . 46 28 27 21 . . 26 Level 2 17 | . . . . . 23 . . . 44 72 2 100 76 39 Level 3 6 | . . . . . . . . . 11 . 4 . 23 33 Level 4 6 | . . . . . . . . . . . 68 . . . Level 5 . | . . . . . . . . . . . . . . . High Security . | . . . . . . . . . . . . . . . Max Security . | . . . . . . . . . . . . . . . Sterilizations 1 | . . . . . . . . . . . . . 1 . Squads Dispatched 21 | . 1 . . . 4 . 1 4 . . 6 . 1 4 Investigation 6 | . 1 . . . 1 . 1 2 . . 1 . . . Extermination 4 | . . . . . 2 . . . . . 1 . . 1 Reinforcement 7 | . . . . . 1 . . 2 . . 2 . 1 1 Assault 3 | . . . . . . . . . . . 1 . . 2 Garrison 1 | . . . . . . . . . . . 1 . . . Intercept . | . . . . . . . . . . . . . . . Searches Triggered . | . . . . . . . . . . . . . . . Construction Impeded 2 | . . . . . . . . 2 . . . . . . Haulers Reinforced . | . . . . . . . . . . . . . . . Active Scanning Responses . | . . . . . . . . . . . . . . . Cargo Convoy Interrupts 2 | . . . . . 1 . . . . . . . . 1 Stealth | -11 -10 -10 -10 -8 -6 -6 -6 -6 -6 -6 -6 -5 -5 -4 --------- Run | Yrd Mat Min Sub Rec Fac Was Fac Ext Cet Arc Hub Fac DSF Fac Distress Signals 9 | . 2 1 . . 1 . . . 1 . 2 . . 2 Communications Jammed . | . . . . . . . . . . . . . . . Distress Signals . | . . . . . . . . . . . . . . . Times Spotted 265 | . 3 5 38 2 31 6 . 50 27 4 25 . 13 61 Peak Tracking Total 20 | . 7 3 7 1 13 6 . 5 6 1 5 . 4 20 Tactical Retreats 13 | . . . 2 . . . . 7 3 . . . . 1 Traps | -11 -10 -10 -10 -8 -6 -6 -6 -6 -6 -6 -6 -5 -5 -4 ------- Run | Yrd Mat Min Sub Rec Fac Was Fac Ext Cet Arc Hub Fac DSF Fac Traps Triggered 10 | . 1 . . . 3 . 1 2 . . 2 . 1 . Indirectly 2 | . . . . . . . . . . . 2 . . . Trap Hack Attempts . | . . . . . . . . . . . . . . . Triggered . | . . . . . . . . . . . . . . . Disarmed . | . . . . . . . . . . . . . . . Reprogrammed . | . . . . . . . . . . . . . . . Reused . | . . . . . . . . . . . . . . . Traps Extracted . | . . . . . . . . . . . . . . . Installed . | . . . . . . . . . . . . . . . Triggered 2 | . . . 2 . . . . . . . . . . . Machines | -11 -10 -10 -10 -8 -6 -6 -6 -6 -6 -6 -6 -5 -5 -4 ---------- Run | Yrd Mat Min Sub Rec Fac Was Fac Ext Cet Arc Hub Fac DSF Fac Machines Disabled 33 | . . . 2 2 2 . . 7 5 1 11 . 1 2 Max in Single Turn 10 | . . . 1 1 1 . . 5 1 1 10 . 1 2 Network Hub 2 | . . . . . . . . . . . 2 . . . Energy Cycler 4 | . . . . . . . . 4 . . . . . . Machines Repaired . | . . . . . . . . . . . . . . . Machines Dismantled . | . . . . . . . . . . . . . . . Machines Sabotaged . | . . . . . . . . . . . . . . . Overloaded Fab Kills . | . . . . . . . . . . . . . . . Hacking | -11 -10 -10 -10 -8 -6 -6 -6 -6 -6 -6 -6 -5 -5 -4 --------- Run | Yrd Mat Min Sub Rec Fac Was Fac Ext Cet Arc Hub Fac DSF Fac Machines Accessed 25 | . 1 . 1 9 1 . 1 8 1 . 1 1 . 1 Terminals 17 | . . . . 4 . . 1 8 1 . 1 1 . 1 Fabricators 1 | . . . . . 1 . . . . . . . . . Repair Stations . | . . . . . . . . . . . . . . . Recycling Units 6 | . 1 . . 5 . . . . . . . . . . Scanalyzers . | . . . . . . . . . . . . . . . Garrison Access . | . . . . . . . . . . . . . . . Total Hacks 52 | . 1 . 9 17 2 . 2 14 2 . 2 1 . 2 Successful 30 | . 1 . 9 10 2 . . 5 . . 1 1 . 1 Failed 22 | . . . . 7 . . 2 9 2 . 1 . . 1 Catastrophic 6 | . . . . . . . 1 3 1 . . . . 1 Database Lockouts . | . . . . . . . . . . . . . . . Manual 18 | . 1 . . 16 . . . . 1 . . . . . Terminals 33 | . . . . 10 . . 2 14 2 . 2 1 . 2 Fabricators 2 | . . . . . 2 . . . . . . . . . Repair Stations . | . . . . . . . . . . . . . . . Recycling Units 8 | . 1 . . 7 . . . . . . . . . . Scanalyzers . | . . . . . . . . . . . . . . . Garrison Access . | . . . . . . . . . . . . . . . Terminal Hacks 18 | . . . 9 1 . . . 5 . . 1 1 . 1 Record 8 | . . . 8 . . . . . . . . . . . Part Schematic 1 | . . . . 1 . . . . . . . . . . Open Door 3 | . . . . . . . . 3 . . . . . . Open DSF 1 | . . . . . . . . . . . . 1 . . Unreport Threat 2 | . . . . . . . . 2 . . . . . . Zone Layout 2 | . . . . . . . . . . . 1 . . 1 Derelict Proto ID Bank 1 | . . . 1 . . . . . . . . . . . Fabricator Hacks 2 | . . . . . 2 . . . . . . . . . Load Schematic 1 | . . . . . 1 . . . . . . . . . Build 1 | . . . . . 1 . . . . . . . . . Repair Station Hacks . | . . . . . . . . . . . . . . . Recycling Unit Hacks 1 | . . . . 1 . . . . . . . . . . Retrieve Components 1 | . . . . 1 . . . . . . . . . . Scanalyzer . | . . . . . . . . . . . . . . . Garrison Access Hacks . | . . . . . . . . . . . . . . . Unauthorized Hacks 9 | . 1 . . 8 . . . . . . . . . . Terminals 3 | . . . . 3 . . . . . . . . . . Botnet 3 | . . . . 3 . . . . . . . . . . Fabricators . | . . . . . . . . . . . . . . . Repair Stations . | . . . . . . . . . . . . . . . Recycling Units 6 | . 1 . . 5 . . . . . . . . . . Tunnel 6 | . 1 . . 5 . . . . . . . . . . Scanalyzers . | . . . . . . . . . . . . . . . Garrison Access . | . . . . . . . . . . . . . . . Data Cores Recovered 1 | . . . . . . . . . . . 1 . . . Used . | . . . . . . . . . . . . . . . Hacking Detections 14 | . . . . 4 1 . 1 5 1 . 1 . . 1 Full Trace Events 4 | . . . . . 1 . 1 2 . . . . . . Feedback Events . | . . . . . . . . . . . . . . . Feedback Blocked . | . . . . . . . . . . . . . . . Robot Schematics Acquired . | . . . . . . . . . . . . . . . Robots Built . | . . . . . . . . . . . . . . . Authchips . | . . . . . . . . . . . . . . . Time . | . . . . . . . . . . . . . . . Total Robot Build Rating . | . . . . . . . . . . . . . . . Part Schematics Acquired 1 | . . . . 1 . . . . . . . . . . Parts Built 1 | . . . . . 1 . . . . . . . . . Authchips . | . . . . . . . . . . . . . . . Time 51 | . . . . . 51 . . . . . . . . . Total Part Build Rating 1 | . . . . . 1 . . . . . . . . . Parts Repaired . | . . . . . . . . . . . . . . . Time . | . . . . . . . . . . . . . . . Parts Recycled . | . . . . . . . . . . . . . . . Recycled Matter . | . . . . . . . . . . . . . . . Retrieved Matter . | . . . . . . . . . . . . . . . Retrieved Components 2 | . . . . 2 . . . . . . . . . . Parts Scanalyzed . | . . . . . . . . . . . . . . . Part Schematics Acquired . | . . . . . . . . . . . . . . . Parts Damaged . | . . . . . . . . . . . . . . . Bothacking | -11 -10 -10 -10 -8 -6 -6 -6 -6 -6 -6 -6 -5 -5 -4 ------------ Run | Yrd Mat Min Sub Rec Fac Was Fac Ext Cet Arc Hub Fac DSF Fac Used RIF Installer . | . . . . . . . . . . . . . . . Robots Hacked . | . . . . . . . . . . . . . . . Non-combat . | . . . . . . . . . . . . . . . Combat . | . . . . . . . . . . . . . . . Robot Hacks Applied . | . . . . . . . . . . . . . . . Relay Couplers Released . | . . . . . . . . . . . . . . . Fabnet Peak Effective % . | . . . . . . . . . . . . . . . Robots Rewired 10 | . . . . . . . . 10 . . . . . . Allies Hacked . | . . . . . . . . . . . . . . . Hacks Repelled . | . . . . . . . . . . . . . . . Allies | -11 -10 -10 -10 -8 -6 -6 -6 -6 -6 -6 -6 -5 -5 -4 -------- Run | Yrd Mat Min Sub Rec Fac Was Fac Ext Cet Arc Hub Fac DSF Fac Total Allies 24 | . . . . . . . . 19 5 . . . . . Largest Group 7 | . . . . . . . . 7 6 5 4 1 1 . Highest-Rated Group 631 | . . . . . . . . 335 631 480 384 89 89 . Highest-Rated Ally 159 | . . . . . . . . 159 159 96 96 89 89 . Total Orders 4 | . . . . . . . . . 4 . . . . . STAY 3 | . . . . . . . . . 3 . . . . . FOLLOW 1 | . . . . . . . . . 1 . . . . . Ally Attacks 305 | . . . . . . . . 72 121 14 90 . 8 . Total Damage 8402 | . . . . . . . . 1288 3047 464 3310 . 293 . Kills 58 | . . . . . . . . 11 20 4 22 . 1 . Allies Corrupted 1 | . . . . . . . . 1 . . . . . . Allies Melted . | . . . . . . . . . . . . . . . Intel | -11 -10 -10 -10 -8 -6 -6 -6 -6 -6 -6 -6 -5 -5 -4 ------- Run | Yrd Mat Min Sub Rec Fac Was Fac Ext Cet Arc Hub Fac DSF Fac Robot Analysis Total . | . . . . . . . . . . . . . . . Derelict Logs Recovered 1 | . . . 1 . . . . . . . . . . . Drone Launches . | . . . . . . . . . . . . . . . Drone Recoveries . | . . . . . . . . . . . . . . . Exploration | -11 -10 -10 -10 -8 -6 -6 -6 -6 -6 -6 -6 -5 -5 -4 ------------- Run | Yrd Mat Min Sub Rec Fac Was Fac Ext Cet Arc Hub Fac DSF Fac Turns Passed 12854 | 85 73 591 4243 1224 849 96 80 2493 674 118 767 163 494 904 Spaces Moved 5349 | 41 46 149 1587 569 409 178 114 1003 327 48 208 99 213 358 Core 406 | 11 . . . . 56 178 89 33 . . . . . 39 Treads 4089 | 30 46 149 1559 569 172 . . 585 155 48 208 99 213 256 Legs 240 | . . . . . 181 . 25 34 . . . . . . Wheels 614 | . . . 28 . . . . 351 172 . . . . 63 Hover . | . . . . . . . . . . . . . . . Flight . | . . . . . . . . . . . . . . . Fastest Speed 50 | 50 160 160 110 160 50 50 50 50 110 160 240 160 160 50 Average Speed 162 | 130 160 160 160 193 147 50 65 180 140 208 240 160 160 152 Slowest Speed 320 | 160 160 160 260 260 320 50 120 320 160 240 240 160 160 240 Overloaded Moves . | . . . . . . . . . . . . . . . Propulsion Burnouts . | . . . . . . . . . . . . . . . Robots Hopped . | . . . . . . . . . . . . . . . Cave-ins Triggered . | . . . . . . . . . . . . . . . Exploration Rate (%) 45 | 5 14 24 62 87 13 85 4 88 67 81 35 4 96 15 Regions Visited 14 Branch Regions 7 Pre-discovered Areas 7 | . 1 . 1 5 . . . . . . . . . . Known Exits Taken 1 | . . . . . . . . . . . . 1 . . Unknown Exits Taken 10 | 1 1 1 1 1 . . 1 1 1 1 1 . . . Scrap Searched 3 | . . . 3 . . . . . . . . . . . Spaces Dug 12 | . . . . . . . . . . . 1 . 8 3 Terrain Destroyed 580 | 2 . . 57 11 65 . . 51 22 . 305 . 17 50 Melee . | . . . . . . . . . . . . . . . Projectile 110 | . . . 3 11 . . . 14 5 . 10 . 17 50 AOE 470 | 2 . . 54 . 65 . . 37 17 . 295 . . . Terrain Rammed . | . . . . . . . . . . . . . . . Walls Destroyed . | . . . . . . . . . . . . . . . Machines Disabled . | . . . . . . . . . . . . . . . Actions | -11 -10 -10 -10 -8 -6 -6 -6 -6 -6 -6 -6 -5 -5 -4 --------- Run | Yrd Mat Min Sub Rec Fac Was Fac Ext Cet Arc Hub Fac DSF Fac Total 8575 | 63 46 476 3156 629 568 183 117 1445 487 58 424 104 280 539 Wait 2249 | . . 311 1434 3 76 3 . 120 75 3 152 . 14 58 Move 5336 | 40 45 148 1586 568 409 177 113 1002 326 47 207 98 212 358 Hop . | . . . . . . . . . . . . . . . Pick Up 92 | 11 1 2 9 4 5 . . 29 13 1 6 3 2 6 Fast Attach 86 | . . . 8 5 14 2 4 26 7 1 7 . 5 7 Attach 64 | 6 . 2 6 2 7 . . 18 4 1 3 2 1 12 Detach 9 | . . . . . 1 . . 1 1 . 3 . . 3 Swap 25 | . . . 5 . 6 . . 3 . 2 9 . . . Drop 90 | . . . 13 7 7 1 . 10 16 . 13 1 6 16 Fire 477 | 6 . 13 83 39 43 . . 103 45 3 24 . 40 78 Melee . | . . . . . . . . . . . . . . . Ram 1 | . . . . . . . . . . . . . . 1 Kick . | . . . . . . . . . . . . . . . Crush 3 | . . . . 1 . . . 2 . . . . . . Escape Stasis 5 | . . . . . . . . 5 . . . . . . Rewire 138 | . . . 12 . . . . 126 . . . . . . Trap . | . . . . . . . . . . . . . . . Miscellaneous . | . . . . . . . . . . . . . . . Route ------- -11/Scrapyard -10/Materials -10/Mines -10/Subcaves -8/Recycling -6/Factory -6/Waste -6/Factory -6/Extension (discovered 2 exits: *Fac / *Cet) -6/Cetus (discovered 2 exits: *Fac / [*Arc]) -6/Archives (discovered 3 exits: *Fac / *Hub x2) -6/Hub_04(d) -5/Factory -5/DSF -4/Factory History --------- Turn | Location | Event 23 | -11/Scrapyard | Discovered new exit (range 16) 86 | -11/Scrapyard | Entered Materials 131 | -10/Materials | Discovered new exit (range 16) 159 | -10/Materials | Entered Mines 215 | -10/Mines | Assembled infested the area 315 | -10/Mines | Build established: Mutant 745 | -10/Mines | Discovered new exit (range 4) 750 | -10/Mines | Entered Subcaves 839 | -10/Subcaves | Ambushed by Subdwellers from Twisted Machinery 852 | -10/Subcaves | Ambushed by swarm of Subdwellers 854 | -10/Subcaves | Ambushed by Subdwellers from Twisted Machinery 857 | -10/Subcaves | Ambushed by Subdwellers from Twisted Machinery 859 | -10/Subcaves | Ambushed by Subdweller buried in earth 859 | -10/Subcaves | Ambushed by Subdweller buried in earth 865 | -10/Subcaves | Core integrity fell below 50% 886 | -10/Subcaves | Destroyed 9 combat bots 979 | -10/Subcaves | A swath of the cavern ceiling suddenly collapsed 1696 | -10/Subcaves | Build established: Scavenger-Mutant 3166 | -10/Subcaves | Shifting Twisted Machinery released Sub. Power Source 3215 | -10/Subcaves | Shifting Twisted Machinery released Mak. Kinetic Plating 3300 | -10/Subcaves | Visited 4L-MR0's lab 3323 | -10/Subcaves | Found Powered Cannon 3422 | -10/Subcaves | A swath of the cavern ceiling suddenly collapsed 3627 | -10/Subcaves | Build established: Mutant 4448 | -10/Subcaves | Shifting Twisted Machinery released Sub. Beam Cannon 4481 | -10/Subcaves | Shifting Twisted Machinery released Shrapnel Trap 4489 | -10/Subcaves | Shifting Twisted Machinery released Sub. Monowheel 4819 | -10/Subcaves | Shifting Twisted Machinery released Sub. Laser 4948 | -10/Subcaves | Discovered new exit (range 12) 4963 | -10/Subcaves | Core integrity fell below 20% 4993 | -10/Subcaves | Entered Recycling 5017 | -8/Recycling | Found Scrap Engine 5712 | -8/Recycling | Discovered new exit (range 8) 6217 | -8/Recycling | Entered Factory 6217 | -6/Factory | Evolved 8 slots: Power x1, Propulsion x1, Utility x4, Weapon x2 6356 | -6/Factory | Fabricated Hcp. Storage Unit (x1) 6750 | -6/Factory | Discovered new exit (range 6) 6764 | -6/Factory | Build established: Scavenger-Gunner 6879 | -6/Factory | Lost 3 parts (1n1u1w) 7035 | -6/Factory | Cargo convoy interrupted 7066 | -6/Factory | Manually triggered Chute Trap 7066 | -6/Factory | Sucked down chute 7066 | -6/Factory | Entered Waste 7075 | -6/Waste | Lost 9 parts (1p1n2u5w) 7075 | -6/Waste | Spotted C-40 Crusher 7079 | -6/Waste | Spotted C-40 Crusher 7081 | -6/Waste | Spotted C-40 Crusher 7086 | -6/Waste | Spotted C-40 Crusher 7090 | -6/Waste | Spotted C-40 Crusher 7090 | -6/Waste | Spotted C-40 Crusher 7132 | -6/Waste | Discovered new exit (range 22) 7162 | -6/Waste | Entered Factory 7216 | -6/Factory | Discovered new exit (range 14) 7242 | -6/Factory | Entered Extension 7324 | -6/Extension | Rescued a captive Derelict 7325 | -6/Extension | Rescued a captive Derelict 7335 | -6/Extension | Lost 5 parts (3n1u1w) 7489 | -6/Extension | System corruption reached 10% 7560 | -6/Extension | Rescued a captive Derelict 7561 | -6/Extension | Rescued a captive Derelict 7653 | -6/Extension | Build established: Scavenger-Tank 7798 | -6/Extension | Rescued a captive Derelict 7799 | -6/Extension | Rescued a captive Derelict 7835 | -6/Extension | Lost 3 allies 7902 | -6/Extension | Spotted B-75 Beast 7961 | -6/Extension | Lost 3 allies 7967 | -6/Extension | Disrupted transfer network 8889 | -6/Extension | Core integrity fell below 50% 8928 | -6/Extension | Lost 3 parts (1p2n) 8957 | -6/Extension | Spotted B-75 Beast 8971 | -6/Extension | Destroyed B-75 Beast 8995 | -6/Extension | Lost 5 parts (1p2n1u1w) 9052 | -6/Extension | Destroyed B-75 Beast 9079 | -6/Extension | Lost 7 parts (2p1n4w) 9191 | -6/Extension | Build established: Scavenger-Gunner 9429 | -6/Extension | Energy Cycler disabled 9430 | -6/Extension | Rescued a captive Derelict 9432 | -6/Extension | Rescued a captive Derelict 9432 | -6/Extension | Rescued a captive Derelict 9433 | -6/Extension | Rescued a captive Derelict 9435 | -6/Extension | Rescued a captive Derelict 9436 | -6/Extension | Rescued a captive Derelict 9437 | -6/Extension | Rescued a captive Derelict 9438 | -6/Extension | Rescued a captive Derelict 9483 | -6/Extension | Rescued A7 9676 | -6/Extension | Discovered new exit (range 10) 9677 | -6/Extension | Discovered new exit (range 6) 9735 | -6/Extension | Entered Cetus 9735 | -6/Cetus | Accompanied by 6 allies (A7) 9740 | -6/Cetus | Acquired a Cetus Manufacturing Module code from A7 9749 | -6/Cetus | Spotted Cetus Guard 9749 | -6/Cetus | Spotted Cetus Guard 9749 | -6/Cetus | Spotted Cetus Guard 9749 | -6/Cetus | Spotted Cetus Guard 9757 | -6/Cetus | Allies destroyed Cetus Guard 9758 | -6/Cetus | Allies destroyed Cetus Guard 9766 | -6/Cetus | Allies destroyed Cetus Guard 9775 | -6/Cetus | Destroyed Cetus Guard 9830 | -6/Cetus | P-60 Hacker assimilated allied 24-Y09(b) 9838 | -6/Cetus | Lost 4 allies 9865 | -6/Cetus | Started Cetus Manufacturing Module 9890 | -6/Cetus | Manufactured an Enhanced Grunt 9915 | -6/Cetus | Manufactured an Enhanced Grunt 9940 | -6/Cetus | Manufactured an Enhanced Grunt 9956 | -6/Cetus | Discovered new exit (range 21) 9965 | -6/Cetus | Manufactured an Enhanced Grunt 9990 | -6/Cetus | Manufactured an Enhanced Grunt 10036 | -6/Cetus | Spotted Cetus Guard 10038 | -6/Cetus | Spotted Cetus Guard 10038 | -6/Cetus | Spotted Cetus Guard 10049 | -6/Cetus | Allies destroyed Cetus Guard 10051 | -6/Cetus | Destroyed Cetus Guard 10051 | -6/Cetus | Spotted Cetus Guard 10061 | -6/Cetus | Destroyed Cetus Guard 10078 | -6/Cetus | Destroyed Cetus Guard 10085 | -6/Cetus | Extracted ID and sensor layout for unrecognized location from A7's data core 10086 | -6/Cetus | Discovered new exit (range 22) 10092 | -6/Cetus | Found Prototype Protection 10092 | -6/Cetus | Identified Med. Regenerative Plating 10107 | -6/Cetus | Lost 3 parts (1u2w) 10117 | -6/Cetus | Met Revision 17 10126 | -6/Cetus | System corruption reached 30% 10325 | -6/Cetus | Cetus Manufacturing Module disabled 10409 | -6/Cetus | Entered Archives 10409 | -6/Archives | Accompanied by 5 allies 10450 | -6/Archives | Discovered new exit (range 22) 10474 | -6/Archives | Discovered new exit (range 21) 10477 | -6/Archives | Discovered new exit (range 17) 10527 | -6/Archives | Entered Hub_04(d) 10527 | -6/Hub_04(d) | Accompanied by 4 allies 10671 | -6/Hub_04(d) | Discovered new exit (range 15) 10727 | -6/Hub_04(d) | Build established: Scavenger-Tank 10732 | -6/Hub_04(d) | Network Hub disabled 10732 | -6/Hub_04(d) | Network Hub disabled 10747 | -6/Hub_04(d) | Garrison activated, responded to threat 10988 | -6/Hub_04(d) | Spotted Lightning 10990 | -6/Hub_04(d) | Spotted Lightning 10991 | -6/Hub_04(d) | Spotted Lightning 11013 | -6/Hub_04(d) | Destroyed Lightning 11016 | -6/Hub_04(d) | Destroyed Lightning 11025 | -6/Hub_04(d) | Allies destroyed Lightning 11057 | -6/Hub_04(d) | Found Prototype Device 11057 | -6/Hub_04(d) | Identified Exp. EM Disruption Field 11068 | -6/Hub_04(d) | Found Prototype Energy Cannon 11070 | -6/Hub_04(d) | Identified EMDS 11083 | -6/Hub_04(d) | Found Prototype Device 11084 | -6/Hub_04(d) | Identified Exp. Phase Shifter 11095 | -6/Hub_04(d) | Found Prototype Processor 11095 | -6/Hub_04(d) | Identified Exp. Targeting Computer 11227 | -6/Hub_04(d) | First assault squad dispatched 11294 | -6/Hub_04(d) | Entered Factory 11294 | -5/Factory | Accompanied by 1 ally 11294 | -5/Factory | Evolved 2 slots: Propulsion x1, Utility x1 11455 | -5/Factory | Identified exit to DSF 11457 | -5/Factory | Entered DSF 11457 | -5/DSF | Accompanied by 1 ally 11491 | -5/DSF | Additional patrols routed to DSF 11594 | -5/DSF | Discovered new exit (range 16) 11885 | -5/DSF | Sterilization system engaged 11905 | -5/DSF | Ambient heat levels rising (+10) 11920 | -5/DSF | Ambient heat levels rising (+10) 11935 | -5/DSF | Ambient heat levels rising (+10) 11950 | -5/DSF | Ambient heat levels rising (+10) 11951 | -5/DSF | Entered Factory 11951 | -4/Factory | Evolved 2 slots: Utility x2 12073 | -4/Factory | Spotted B-86 Titan 12155 | -4/Factory | Spotted B-86 Titan 12207 | -4/Factory | Destroyed B-86 Titan 12701 | -4/Factory | First assault squad dispatched 12809 | -4/Factory | Destroyed 9 combat bots 12812 | -4/Factory | Cargo convoy interrupted 12833 | -4/Factory | Spotted Executioner 12837 | -4/Factory | System corruption reached 10% 12840 | -4/Factory | Core integrity fell below 50% 12853 | -4/Factory | Core integrity fell below 20% 12855 | -4/Factory | Destroyed by Executioner with Helical Railgun Last Messages --------------- 12839_ M-36 Artificer repairs Hvy. Laser. 12840_ R-10 Processor collects Adv. Energy Well. 12841_ P-70 Sage resets H-77 Assassin, system corruption cleaned. 12841_ I-47 Archangel knocked back. 12841_ U-05 Engineer builds a Wall. 12843_ Penetrated by Slug. 12845_ Slug penetrates Wall. 12845_ P-70 Sage resets P-70 Sage, system corruption cleaned. 12852_ Slammed into S-27 Virus. 12854_ S-27 Virus destroyed. 12854_ X-72 Disruptor knocked back. 12854_ Exp. Heat Sink destroyed. 12854_ Penetrated by Slug. 12854_ I-47 Archangel suffers critical hit (Destroy). 12854_ I-47 Archangel destroyed. 12855_ Penetrated by Slug. 12855_ Slug penetrates Wall. Map ----- +----------------------------------------------------+ | ?????????????????????????????????????????????????? | | ?????????????????????????????????????????????????? | | ?????????????????????????????????????????????????? | | ?????????????????????????????????????????????????? | | ?????????????????????????????????????????????????? | | ##+#####?????????????????????????????????????????? | | #?????????????????????????????????????????? | | #?????????????????????????????????????????? | | #?????????????????????????????????????????? | | #?????????????????????????????????????????? | | #?????????????????????????????????????????? | | #?????????????????????????????????????????? | | #?????????????????????????????????????????? | | = #?????????????????????????????????????????? | | %!= # #???????????????? ?????????????????????? | | !/%=[ ####???###?????????? ?????????????????????? | | ]!!!%="######T ##########? ?????????????????????? | | ! =[ **= #? ?????????????????????? | | [" !%! A #? ?????#???????????????? | | %%" !!= ##+##### #???????????????? | | [%=!" ????????????????? | | * x ??????????????????? | | x ???????????????????? | | % % px ????????????????????? | | % p p ######????????????????? | | [ @ ; #????????????????? | | =s; #????????????????? | | s%s# ;#???????????????? | | = # # ????????????? | | s ; #??? ! ?????????? | | #### #????????????????? | | #??# #????????????????? | | #??# #????????????????? | | ##################;;#####??# #????????????????? | | ?????????????????## #??????######????????????????? | | ??????????????????###????????????????????????????? | | ?????????????????????????????????????????????????? | | ?????????????????????????????????????????????????? | | ?????????????????????????????????????????????????? | | ?????????????????????????????????????????????????? | | ?????????????????????????????????????????????????? | | ?????????????????????????????????????????????????? | | ?????????????????????????????????????????????????? | | ?????????????????????????????????????????????????? | | ?????????????????????????????????????????????????? | | | | | | | | | | | +----------------------------------------------------+ Best States ------------- Heat Dissipation 131 Coolant Potential 65 Energy Generation 57 Energy Capacity 600 Matter Stores 300 Matter Capacity 300 Sight Range 22 Terrain Scan Density 10 Power Amplification 60 Armor Coverage 1350 Resistance: EM 75 Core Shielding 30 Phase Shifting 20 Evasion (%) 60 Targeting Accuracy 12 Core Analysis 9 Recoil Reduction 4 Particle Charging 20 Item Schematics ----------------- Hcp. Storage Unit | -8/Recycling | Hacked Robot Schematics ------------------ None Fabricated ------------ Hcp. Storage Unit | x1 | -6/Factory Alien Tech Used ----------------- None Achievements -------------- None Challenges ------------ None Game ------ Seed ScatterModifiedAutogun Manual? 0 Play Time 01:37:58 Cumulative 739.9 hours Start 2024.03.18 @ 18:52:19 End 2024.03.18 @ 20:47:10 Sessions 3 Manual Loads 0 Difficulty Rogue Special Mode None Game No. 480 Rogue 473 Adventurer 0 Explorer 7 Win Type - Total 54 Types 20/5/19/2/0/1/5/1/1 Lore% 85 Gallery% 95 Achievement% 83 Wizard Run 0 Options --------- Layout 1 ASCII 0 Keyboard 0 Movement Numpad Keybinds 0 Fullscreen 1 Font 24/Smallcaps Map View 50x35 Zoom Use 0% Tactical HUD 1 Map Filters NONE Filters NONE Steam 1 RUN: c20f957d-f5cb-4257-97f0-37ede951b743